Cogmind - Beta 15 *** ADVENTURER MODE // 2025.05.12 @ 21:22:28 Player: Jack Result: Self-destructed Performance ------------- Evolutions (1) 500 Regions Visited (5) 1000 Robots Destroyed (19) 95 Value Destroyed (202) 202 Prototype IDs (0) 0 Alien Tech Used (0) 0 Bonus (46) 46 TOTAL SCORE: 1843 Bonus ------- Follower Combat Kills 46 Cogmind --------- Core Integrity 315/400 Matter 112/300 Energy 125/125 System Corruption 0% Temperature Cool (0) Movement Flying (34) Location -9/Exiles Parts ------- > --- POWER (1) -------- Light Ion Engine > --- PROPULSION (3) --- Flight Unit Flight Unit Flight Unit > --- UTILITY (3) ------ Signal Interpreter > --- WEAPON (2) ------- Light Assault Rifle Light Assault Rifle > --- INVENTORY (5) ---- Flight Unit Flight Unit Improved Flight Unit Mace Mace Peak State ------------ > --- POWER ------------ Light Ion Engine > --- PROPULSION ------- Flight Unit Flight Unit Flight Unit > --- UTILITY ---------- Signal Interpreter > --- WEAPON ----------- Light Assault Rifle Mace > --- INVENTORY -------- Flight Unit Flight Unit Improved Flight Unit Light Assault Rifle Mace [Rating: 8] Favorites ----------- Power Light Ion Engine Engine Light Ion Engine Propulsion Flight Unit Flight Unit Flight Unit Utility Signal Interpreter Processor Signal Interpreter Weapon Light Assault Rifle Energy Gun EM Pulse Gun Ballistic Gun Light Assault Rifle Launcher Grenade Launcher Impact Weapon Mace Build | -11 -10 -10 -9 -9 -9 ------- Run | Yrd Mat Min Mat Min Exi Slots Evolved 2 | . . . 2 . . Power . | . . . . . . Propulsion 1 | . . . 1 . . Utility 1 | . . . 1 . . Weapon . | . . . . . . Parts Attached 22 | 2 1 2 14 3 . Power 1 | . . . 1 . . Engine 1 | . . . 1 . . Core . | . . . . . . Reactor . | . . . . . . Propulsion 14 | . . 1 10 3 . Treads . | . . . . . . Leg . | . . . . . . Wheel . | . . . . . . Hover . | . . . . . . Flight 14 | . . 1 10 3 . Utility 2 | . 1 . 1 . . Device . | . . . . . . Storage . | . . . . . . Processor 2 | . 1 . 1 . . Hackware . | . . . . . . Protection . | . . . . . . Artifact . | . . . . . . Weapon 5 | 2 . 1 2 . . Energy Gun 1 | 1 . . . . . Energy Cannon . | . . . . . . Ballistic Gun 2 | 1 . . 1 . . Ballistic Cannon . | . . . . . . Launcher 1 | . . 1 . . . Special Weapon . | . . . . . . Impact Weapon 1 | . . . 1 . . Slashing Weapon . | . . . . . . Piercing Weapon . | . . . . . . Special Melee Weapon . | . . . . . . Unidentified Prototypes . | . . . . . . Parts Lost 6 | . . 1 5 . . Power . | . . . . . . Propulsion 4 | . . 1 3 . . Utility . | . . . . . . Weapon 2 | . . . 2 . . Highest Loss Streak 4 | . . 1 4 . . To Critical Strikes . | . . . . . . Average Backups 3 | . 2 2 3 5 5 Power . | . . . . . . Propulsion 1 | . . . 1 3 3 Utility . | . . . . . . Weapon 2 | . 2 2 2 2 2 Tool/Special . | . . . . . . Unused Backups 2 | . . . . . 2 Power . | . . . . . . Propulsion 1 | . . . . . 1 Utility . | . . . . . . Weapon 1 | . . . . . 1 Tool/Special . | . . . . . . Average Slot Usage (%) 44 | . 7 22 57 77 77 Engine 5 | . . . 7 11 11 Flight 16 | . . 3 22 33 33 Processor 10 | . 6 14 11 11 11 Energy Gun 1 | . 1 1 2 . . Ballistic Gun 10 | . . 1 13 22 22 Peak Build Rating 8 | 2 2 4 8 7 7 Average Rating 3 | . . 1 5 7 7 On Entrance 2 | . . 1 1 7 7 Naked Turns 55 | . 55 . . . . Heaviest Build 6 | 3 2 3 6 5 5 Greatest Support 12 | 3 3 4 12 12 12 Greatest Overweight (x) . | . . . . . . Average Overweight (x) . | . . . . . . Largest Inventory Capacity 5 | 5 5 5 5 5 5 Average Capacity 5 | 5 5 5 5 5 5 Most Carried 5 | 2 3 3 5 5 5 Average Carried 3 | . 2 2 3 5 5 Final Capacity 5 | 5 5 5 5 5 5 Final Carried 5 | 2 3 3 5 5 5 Class Distribution -------------------- 50% | Scavenger-Mutant 49% | Mutant Dominant Class ---------------- Mutant | -10/Materials Mutant | -10/Mines Scavenger-Mutant | -9/Materials Scavenger-Mutant | -9/Mines Scavenger-Mutant | -9/Exiles Resources | -11 -10 -10 -9 -9 -9 ----------- Run | Yrd Mat Min Mat Min Exi Matter Collected 464 | 58 46 140 126 94 . Remotely . | . . . . . . Salvage Created 346 | . 46 57 168 75 . Parts 45 | . 4 3 28 10 . Haulers Intercepted 1 | . 1 . . . . Recyclers Shooed 1 | . . . 1 . . Parts Field Recycled . | . . . . . . Retrieved Matter . | . . . . . . Parts Self-Destructed . | . . . . . . Prevented . | . . . . . . Kills | -11 -10 -10 -9 -9 -9 ------- Run | Yrd Mat Min Mat Min Exi Combat Hostiles Destroyed 22 | . . 9 8 5 . Guns 15 | . . 3 7 5 . AOE 7 | . . 6 1 . . Classes Destroyed 6 | . 1 3 2 . . Builder 1 | . . . 1 . . Hauler 1 | . 1 . . . . Swarmer 15 | . . 3 7 5 . Grunt 1 | . . 1 . . . Sentry 1 | . . . 1 . . Assembled 6 | . . 6 . . . Best Kill Streak 8 | . 1 4 8 3 . Combat Bots Only 4 | . . 4 4 3 . Max Kills in Single Turn 2 | . 1 2 2 1 . Gunslinging 1 | . . . 1 . . Exploded 2 | . . 2 1 . . Melee . | . . . . . . Uniques/NPCs Destroyed . | . . . . . . Combat | -11 -10 -10 -9 -9 -9 -------- Run | Yrd Mat Min Mat Min Exi Hostile Shots Fired 128 | . . 48 71 9 . Missed 48 | . . 12 34 2 . Hits 80 | . . 36 37 7 . Melee 1 | . . 1 . . . Projectile 79 | . . 35 37 7 . AOE 1 | . . 1 . . . Critical Strikes 1 | . . . 1 . . Damage Taken 692 | . . 362 278 52 . Core 322 | . . 237 70 15 . Absorbed by Shields . | . . . . . . Ignored by Resistances 198 | . . 102 82 14 . Core Remaining (%) 52 | 100 . 5 . . . Volleys Fired 49 | . 3 21 18 7 . Largest 2 | . 1 2 2 2 . Hottest 60 | . 40 60 60 40 . Shots Fired 79 | . 3 29 33 14 . Gun 65 | . 3 16 32 14 . Cannon . | . . . . . . Launcher 14 | . . 13 1 . . Special . | . . . . . . Kinetic 48 | . . 8 26 14 . Thermal . | . . . . . . Explosive 14 | . . 13 1 . . Electromagnetic 17 | . 3 8 6 . . Robot Hit Streak 11 | . 3 8 11 8 . Robot Miss Streak 5 | . . 3 5 1 . Penetration Max . | . . . . . . Secondary Targets 4 | . . 1 2 1 . Max Gunslinging Chain 1 | . . 1 1 1 . Shots Hit Robots 51 | . 3 15 22 11 . Core Hits 39 | . 2 19 12 6 . Critical Kills . | . . . . . . Critical Parts Destroyed . | . . . . . . Critical Strikes . | . . . . . . Melee Attacks 2 | . . . 2 . . Impact 2 | . . . 2 . . Slashing . | . . . . . . Piercing . | . . . . . . Sneak Attacks . | . . . . . . Combat Hostiles . | . . . . . . Follow-up Attacks . | . . . . . . Damage Inflicted 1109 | . 37 680 308 84 . Guns 419 | . 37 105 193 84 . Cannons . | . . . . . . Explosions 641 | . . 559 82 . . Melee . | . . . . . . Ramming 49 | . . 16 33 . . Kinetic 284 | . . 38 162 84 . Thermal . | . . . . . . Explosive 641 | . . 559 82 . . Electromagnetic 135 | . 37 67 31 . . Impact . | . . . . . . Slashing . | . . . . . . Piercing . | . . . . . . Highest Corruption . | . . . . . . Average Corruption . | . . . . . . Corruption Purged . | . . . . . . Corruption Blocked . | . . . . . . Overload Shots . | . . . . . . Overflow Damage 1 | . . 1 . . . Projectiles . | . . . . . . Explosions . | . . . . . . Melee 1 | . . 1 . . . Knockbacks . | . . . . . . Impact . | . . . . . . Kinetic . | . . . . . . Secondary . | . . . . . . Self-Inflicted Damage 37 | . . 21 16 . . Shots 1 | . . 1 . . . Rammed 3 | . . 1 2 . . Targets Rammed 3 | . . 1 2 . . Kicked . | . . . . . . Crushed . | . . . . . . Highest Temperature 40 | . 15 20 40 . . Average Temperature 11 | . 10 9 13 . . Received Heat Transfer 54 | . . . 54 . . Siege Activations . | . . . . . . Martial Activations . | . . . . . . Shielding Activations . | . . . . . . Robots Disrupted . | . . . . . . Combat Hostiles . | . . . . . . Robots Corrupted . | . . . . . . Combat Hostiles . | . . . . . . Parts Fried . | . . . . . . Impact Corruptions 1 | . . 1 . . . Robots Melted . | . . . . . . Combat Hostiles . | . . . . . . Parts Melted . | . . . . . . Heat Transferred . | . . . . . . Parts Sabotaged . | . . . . . . Parts Stolen . | . . . . . . Parts Stripped . | . . . . . . Power Chain Reactions . | . . . . . . Alert | -11 -10 -10 -9 -9 -9 ------- Run | Yrd Mat Min Mat Min Exi Maximum Alert Level 1 | . . . 1 1 . Low Security (%) 86 | 100 100 100 66 80 . Level 1 13 | . . . 33 19 . Level 2 . | . . . . . . Level 3 . | . . . . . . Level 4 . | . . . . . . Level 5 . | . . . . . . High Security . | . . . . . . Max Security . | . . . . . . Peak Influence 337 | . 7 84 337 213 . Initial 107 | . . . 21 107 . Average 92 | . 1 29 160 158 . Influence Increases 786 | . 16 158 456 156 . Destroy 0b10 Robot/C 360 | . . 80 160 120 . Destroy 0b10 Robot/NC 10 | . 5 . 5 . . Destroy Leader 62 | . 2 20 20 20 . Allied During Kill 3 | . . 2 . 1 . Successful Hack 16 | . 9 . 7 . . Destroy Structure 50 | . . 41 9 . . Partial Spotted 15 | . . . 15 . . Lose Combat Pursuer 270 | . . 15 240 15 . Influence Decreases 786 | . 16 92 195 320 163 Entered New Map 428 | . . . 45 220 163 Time Decay 266 | . 16 50 100 100 . Lost Part 60 | . . 10 50 . . Lost Ally 32 | . . 32 . . . Squads Dispatched 3 | . 1 . 2 . . Investigation 2 | . 1 . 1 . . Extermination . | . . . . . . Reinforcement 1 | . . . 1 . . Assault . | . . . . . . Garrison . | . . . . . . Intercept . | . . . . . . Searches Triggered . | . . . . . . Construction Impeded . | . . . . . . Haulers Reinforced . | . . . . . . Active Scanning Responses . | . . . . . . Cargo Convoy Interrupts . | . . . . . . Stealth | -11 -10 -10 -9 -9 -9 --------- Run | Yrd Mat Min Mat Min Exi Distress Signals 2 | . . . 2 . . Communications Jammed . | . . . . . . Distress Signals . | . . . . . . Times Spotted 61 | . 1 20 34 6 . Peak Tracking Total 11 | . 1 9 11 3 . Tactical Retreats 7 | . . 1 5 1 . Traps | -11 -10 -10 -9 -9 -9 ------- Run | Yrd Mat Min Mat Min Exi Traps Triggered 3 | . 2 . 1 . . Indirectly . | . . . . . . Trap Hack Attempts . | . . . . . . Triggered . | . . . . . . Disarmed . | . . . . . . Reprogrammed . | . . . . . . Reused . | . . . . . . Traps Extracted . | . . . . . . Installed . | . . . . . . Triggered . | . . . . . . Machines | -11 -10 -10 -9 -9 -9 ---------- Run | Yrd Mat Min Mat Min Exi Machines Disabled . | . . . . . . Max in Single Turn . | . . . . . . Machines Repaired . | . . . . . . Machines Dismantled . | . . . . . . Machines Sabotaged . | . . . . . . Overloaded Fab Kills . | . . . . . . Hacking | -11 -10 -10 -9 -9 -9 --------- Run | Yrd Mat Min Mat Min Exi Machines Accessed 5 | . 4 . 1 . . Terminals 5 | . 4 . 1 . . Fabricators . | . . . . . . Repair Stations . | . . . . . . Recycling Units . | . . . . . . Scanalyzers . | . . . . . . Garrison Access . | . . . . . . Total Hacks 11 | . 10 . 1 . . Successful 6 | . 5 . 1 . . Failed 5 | . 5 . . . . Catastrophic 1 | . 1 . . . . Database Lockouts . | . . . . . . Manual 11 | . 10 . 1 . . Terminals 11 | . 10 . 1 . . Fabricators . | . . . . . . Repair Stations . | . . . . . . Recycling Units . | . . . . . . Scanalyzers . | . . . . . . Garrison Access . | . . . . . . Terminal Hacks 2 | . 1 . 1 . . Branch Access Points 2 | . 1 . 1 . . Fabricator Hacks . | . . . . . . Repair Station Hacks . | . . . . . . Recycling Unit Hacks . | . . . . . . Scanalyzer . | . . . . . . Garrison Access Hacks . | . . . . . . Unauthorized Hacks 4 | . 4 . . . . Terminals 4 | . 4 . . . . Botnet 4 | . 4 . . . . Fabricators . | . . . . . . Repair Stations . | . . . . . . Recycling Units . | . . . . . . Scanalyzers . | . . . . . . Garrison Access . | . . . . . . Data Cores Recovered . | . . . . . . Used . | . . . . . . Hacking Detections 2 | . 2 . . . . Full Trace Events 1 | . 1 . . . . Feedback Events . | . . . . . . Feedback Blocked . | . . . . . . Robot Schematics Acquired . | . . . . . . Robots Built . | . . . . . . Authchips . | . . . . . . Time . | . . . . . . Total Robot Build Rating . | . . . . . . Part Schematics Acquired . | . . . . . . Parts Built . | . . . . . . Authchips . | . . . . . . Time . | . . . . . . Total Part Build Rating . | . . . . . . Parts Repaired . | . . . . . . Time . | . . . . . . Parts Recycled . | . . . . . . Recycled Matter . | . . . . . . Retrieved Matter . | . . . . . . Retrieved Components . | . . . . . . Parts Scanalyzed . | . . . . . . Part Schematics Acquired . | . . . . . . Parts Damaged . | . . . . . . Bothacking | -11 -10 -10 -9 -9 -9 ------------ Run | Yrd Mat Min Mat Min Exi Used RIF Installer . | . . . . . . Robots Hacked . | . . . . . . Non-combat . | . . . . . . Combat . | . . . . . . Robot Hacks Applied . | . . . . . . Relay Couplers Released . | . . . . . . Fabnet Peak Effective % . | . . . . . . Robots Rewired . | . . . . . . Allies Hacked . | . . . . . . Hacks Repelled . | . . . . . . Allies | -11 -10 -10 -9 -9 -9 -------- Run | Yrd Mat Min Mat Min Exi Total Allies 4 | . . 3 . 1 . Largest Group 3 | . . 3 . 1 1 Highest-Rated Group 40 | . . 40 . 31 31 Highest-Rated Ally 31 | . . 16 . 31 31 Total Orders . | . . . . . . Ally Attacks 16 | . . 15 . 1 . Total Damage 146 | . . 126 . 20 . Kills 2 | . . 1 . 1 . Allies Corrupted . | . . . . . . Allies Melted . | . . . . . . Intel | -11 -10 -10 -9 -9 -9 ------- Run | Yrd Mat Min Mat Min Exi Active Infowar (turns) . | . . . . . . Robot Analysis Total . | . . . . . . Derelict Logs Recovered 2 | . . 1 . 1 . Drone Launches . | . . . . . . Drone Recoveries . | . . . . . . Exploration | -11 -10 -10 -9 -9 -9 ------------- Run | Yrd Mat Min Mat Min Exi Turns Passed 800 | 24 134 212 206 202 22 Spaces Moved 1337 | 39 247 296 318 375 62 Core 611 | 39 247 237 88 . . Treads . | . . . . . . Legs . | . . . . . . Wheels . | . . . . . . Hover . | . . . . . . Flight 726 | . . 59 230 375 62 Fastest Speed 34 | 50 50 40 34 34 34 Average Speed 41 | 50 50 48 38 34 34 Slowest Speed 50 | 50 50 50 50 34 34 Overloaded Moves . | . . . . . . Propulsion Burnouts . | . . . . . . Robots Hopped 7 | . . . 2 5 . Potential Cave-ins . | . . . . . . Cave-ins Triggered . | . . . . . . Exploration Rate (%) 42 | 3 40 74 34 77 24 Regions Visited 5 Branch Regions 3 Pre-discovered Areas 2 | . . 1 . 1 . Known Exits Taken 4 | . 1 1 1 1 . Unknown Exits Taken 1 | 1 . . . . . Scrap Searched 1 | . . 1 . . . Spaces Dug 1 | . . . 1 . . Terrain Destroyed 65 | . . 57 8 . . Melee 1 | . . . 1 . . Projectile . | . . . . . . AOE 64 | . . 57 7 . . Terrain Rammed . | . . . . . . Walls Destroyed . | . . . . . . Machines Disabled . | . . . . . . Actions | -11 -10 -10 -9 -9 -9 --------- Run | Yrd Mat Min Mat Min Exi Total 1492 | 42 253 339 362 434 62 Wait 66 | . . 13 1 52 . Move 1318 | 38 246 295 313 364 62 Hop 7 | . . . 2 5 . Pick Up 4 | . 1 . 3 . . Fast Attach 13 | 2 1 1 9 . . Attach 8 | . 1 4 3 . . Detach 7 | 2 1 4 . . . Swap 9 | . . . 6 3 . Drop 6 | . . . 3 3 . Fire 49 | . 3 21 18 7 . Melee 2 | . . . 2 . . Ram 3 | . . 1 2 . . Kick . | . . . . . . Crush . | . . . . . . Escape Stasis . | . . . . . . Rewire . | . . . . . . Trap . | . . . . . . Miscellaneous . | . . . . . . Route ------- -11/Scrapyard -10/Materials (discovered 3 exits: *Mat / *Min x2) -10/Mines -9/Materials (discovered 3 exits: *Mat / *Min x2) -9/Mines (discovered 3 exits: *Mat x2 / *Exi) -9/Exiles History --------- Turn | Location | Event 5 | -11/Scrapyard | Discovered new exit (range 15) 25 | -11/Scrapyard | Entered Materials 102 | -10/Materials | Discovered new exit (range 16) 132 | -10/Materials | Identified exit to Mines 159 | -10/Materials | Entered Mines 161 | -10/Mines | Assembled infested the area 164 | -10/Mines | Assisted by bots powering up and referring to "LRC-V3" 209 | -10/Mines | Found a Scrap Suit stashed away for nefarious purposes 249 | -10/Mines | Learned location of Mines (-8) 303 | -10/Mines | Build established: Mutant 341 | -10/Mines | Core integrity fell below 50% 360 | -10/Mines | Core integrity fell below 20% 365 | -10/Mines | Discovered new exit (range 7) 370 | -10/Mines | Identified exit to Materials 371 | -10/Mines | Entered Materials 371 | -9/Materials | Evolved 2 slots: Propulsion x1, Utility x1 504 | -9/Materials | Lost 4 parts (3n1w) 516 | -9/Materials | Discovered new exit (range 7) 520 | -9/Materials | Identified exit to Mines 577 | -9/Materials | Entered Mines 580 | -9/Mines | Received a Mining Laser from a helpful Derelict 645 | -9/Mines | Discovered new exit (range 8) 670 | -9/Mines | Discovered new exit (range 8) 691 | -9/Mines | Identified exit to Materials 694 | -9/Mines | Build established: Scavenger-Mutant 729 | -9/Mines | Deemed a non-threat by the Exiles lab entrance 729 | -9/Mines | Discovered new exit (range 5) 779 | -9/Mines | Identified exit to Exiles 779 | -9/Mines | Entered Exiles 779 | -9/Exiles | Found Exiles lab abandoned 779 | -9/Exiles | Accompanied by 1 ally 801 | -9/Exiles | Self-destructed Last Messages --------------- EXIT=FOUND Acquired 19 matter. Dropped Flight Unit. K-01 Serf collects debris. Acquired derelict log, extracted data. World map updated: -8/Materials. EXIT=FOUND S-10 Pest destroyed. Switching to secondary target: S-10 Pest. S-10 Pest destroyed. Acquired 14 matter. Acquired 13 matter. Acquired 15 matter. EXIT=IDENTIFIED: MATERIALS R-06 Scavenger collects Flight Unit. "No threat detected, you may enter." EXIT=FOUND EXIT=IDENTIFIED: EXILES LOCATION=EXILES GOAL=ESCAPE Map ----- +----------------------------------------------------+ | ?????????????????????????????????????????????????? | | ?????????????????????????????????????????????????? | | ?????????????????????????????????????????????????? | | ?????????????????????????????????????????????????? | | ?????????????????????????????????????????????????? | | ?????????????????????????????????????????????????? | | ?????????????????????????????????????????????????? | | ?????????????????????????????????????????????????? | | ?????????????????????????????????????????????????? | | ?????????????????????????????????????????????????? | | ?????????????????????????????????????????????????? | | ?????????????????????????????????????????????????? | | ???????????????????? #?????###?###???????????????? | | ?????????????????? #####"""""""""##???????????? | | ???????????????? " """ """"##??????????? | | ???????????????? "" " #??????????? | | ???????????????? " """#??????????? | | ????????????????? " "#??????????? | | ????????????????? " "##?????????# | | ?????????????????? ""###???????# | | ??????????????????? """#??????## | | ???????????????????" "#????### | | ????????????????????#""" ##???# | | ?????????????????????#""" ##?## | | ?????????????????????#"""" ### | | ?????????????????????#"" @ | | ????????????????????#"""" | | ???????????????????"" "" | | ?????????????????"" #"""# | | ???????????????? ###### | | ??????????????? ##????? | | ??????????????? " ##?????? | | ?????????????? "" """ ""#??????? | | ??????????????## ##""" " " ""#" "##??????? | | ???????????????# ?#####""" """##"""""""##???????? | | ???????????????#???????###""""###########????????? | | ?????????????????????????#####???????????????????? | | ?????????????????????????????????????????????????? | | ?????????????????????????????????????????????????? | | ?????????????????????????????????????????????????? | | ?????????????????????????????????????????????????? | | ?????????????????????????????????????????????????? | | ?????????????????????????????????????????????????? | | ?????????????????????????????????????????????????? | | ?????????????????????????????????????????????????? | | ?????????????????????????????????????????????????? | | ?????????????????????????????????????????????????? | | ?????????????????????????????????????????????????? | | ?????????????????????????????????????????????????? | | ?????????????????????????????????????????????????? | +----------------------------------------------------+ Best States ------------- Heat Dissipation 28 Energy Generation 10 Energy Capacity 125 Matter Stores 261 Matter Capacity 300 Sight Range 16 Terrain Scan Density 10 Resistance: KI 20 Resistance: TH 20 Resistance: EX 20 Resistance: EM 20 Resistance: I 20 Resistance: S 20 Resistance: P 20 Evasion (%) 63 Offensive Hacking 10 Item Schematics ----------------- None Robot Schematics ------------------ None Fabricated ------------ Nothing Repaired ---------- Nothing Alien Tech Used ----------------- None Achievements -------------- None Challenges ------------ None Game ------ Seed KineticHardenedThrower Manual? 0 Play Time 00:09:39 Cumulative 124.0 hours Start 2025.05.12 @ 21:12:42 End 2025.05.12 @ 21:22:28 Sessions 1 Manual Loads 0 Difficulty Adventurer Special Mode None Game No. 140 Rogue 18 Adventurer 111 Explorer 11 Win Type - Total 27 Types 8/0/11/0/3/0/4/1/0/0 Lore% 38 Gallery% 41 Achievement% 63 Wizard Run 0 Options --------- Layout 0 ASCII 0 Keyboard 0 Movement Numpad Keybinds 0 Fullscreen 2 Font 12/Smallcaps Map View 83x54 Zoom Use 0% Tactical HUD 0 Map Filters NONE Filters NONE Steam 1 RUN: 12e6f7d2-ed9b-4c46-8990-b187566a299c